fUSD/lending_fUSD_20240210
["ID","MTS","AMOUNT","RATE_DAILY","PERIOD"]
[313659467,1707550245940,-1126.02,0.00023272,2]
[313659469,1707550245949,-524.82,0.00023272,2]
[313659471,1707550245958,-500.0,0.00023272,2]
[313659472,1707550245967,-3938.0,0.00023272,2]
[313659474,1707550245977,-3429.49,0.00023272,2]
[313659475,1707550245986,-500.0,0.00023272,2]
[313659476,1707550245995,-500.0,0.00023272,2]
[313659478,1707550246005,-500.0,0.00023272,2]
[313659479,1707550246014,-3617.37,0.00023272,2]
[313659480,1707550246023,-500.0,0.00023272,2]
[313659481,1707550246032,-500.0,0.00023273,2]
[313659482,1707550246041,-500.0,0.00023273,2]
[313659484,1707550246051,-500.0,0.00023273,2]
[313659485,1707550246060,-511.54743809,0.00023273,2]
[313659486,1707550246069,-500.0,0.00023273,2]
[313659488,1707550246079,-500.0,0.00023273,2]
[313659489,1707550246088,-500.0,0.00023273,2]
[313659490,1707550246098,-500.0,0.00023273,2]
[313659491,1707550246108,-500.0,0.00023273,2]
[313659492,1707550246117,-500.0,0.00023273,2]
[313659493,1707550246127,-500.0,0.00023273,2]
[313659495,1707550246137,-500.0,0.00023273,2]
[313659496,1707550246146,-500.0,0.00023273,2]
[313659497,1707550246156,-500.0,0.00023273,2]
[313659498,1707550246167,-500.0,0.00023273,2]
[313659499,1707550246178,-500.0,0.00023273,2]
[313659500,1707550246188,-510.41598441,0.00023273,2]
[313659501,1707550246197,-500.0,0.00023273,2]
[313659502,1707550246207,-544.64,0.00023273,2]
[313659503,1707550246216,-974.06,0.00023273,2]
[313659504,1707550246225,-500.0,0.00023273,2]
[313659505,1707550246235,-601.15627985,0.00023273,2]
[313659507,1707550246244,-500.0,0.00023273,2]
[313659508,1707550246254,-627.49,0.00023273,2]
[313659509,1707550246263,-500.0,0.00023273,2]
[313659510,1707550246273,-545.36432737,0.00023273,2]
[313659511,1707550246283,-531.60637626,0.00023273,2]
[313659512,1707550246292,-500.0,0.00023273,2]
[313659513,1707550246302,-500.0,0.00023273,2]
[313659514,1707550246312,-544.16711389,0.00023273,2]
[313659515,1707550246322,-500.0,0.00023273,2]
[313659516,1707550246332,-626.9,0.00023273,2]
[313659517,1707550246341,-500.0,0.00023273,2]
[313659518,1707550246351,-500.0,0.00023273,2]
[313659519,1707550246361,-500.0,0.00023273,2]
[313659520,1707550246370,-500.0,0.00023273,2]
[313659521,1707550246380,-3096.17,0.00023273,2]
[313659522,1707550246389,-353.66950677,0.00023273,2]
[313659523,1707550246399,-500.0,0.00023273,2]
[313659524,1707550246409,-285.43161133,0.00023273,2]
[313659525,1707550246419,-500.0,0.00023273,2]
[313659526,1707550246428,-500.0,0.00023273,2]
[313659527,1707550246438,-500.0,0.00023273,2]
[313659528,1707550246447,-500.0,0.00023273,2]
[313659529,1707550246457,-500.0,0.00023273,2]
[313659530,1707550246466,-500.0,0.00023273,2]
[313659531,1707550246475,-1000.0,0.00023273,2]
[313659532,1707550246485,-500.0,0.00023273,2]
[313659533,1707550246495,-500.0,0.00023273,2]
[313659534,1707550246504,-500.0,0.00023273,2]
[313659535,1707550246513,-500.0,0.00023273,2]
[313659536,1707550246523,-500.0,0.00023273,2]
[313659537,1707550246532,-512.11951926,0.00023273,2]
[313659538,1707550246541,-500.0,0.00023273,2]
[313659539,1707550246551,-500.0,0.00023273,2]
[313659540,1707550246561,-510.12248475,0.00023273,2]
[313659541,1707550246570,-500.0,0.00023273,2]
[313659542,1707550246579,-500.0,0.00023273,2]
[313659543,1707550246589,-500.0,0.00023273,2]
[313659544,1707550246598,-500.0,0.00023273,2]
[313659545,1707550246607,-500.0,0.00023273,2]
[313659546,1707550246617,-500.0,0.00023273,2]
[313659547,1707550246627,-500.0,0.00023273,2]
[313659548,1707550246636,-500.0,0.00023273,2]
[313659549,1707550246646,-201.6130509,0.00023273,2]
[313659550,1707550246656,-500.0,0.00023273,2]
[313659551,1707550246665,-500.0,0.00023273,2]
[313659552,1707550246675,-500.0,0.00023273,2]
[313659553,1707550246685,-500.0,0.00023273,2]
[313659554,1707550246694,-520.33,0.00023273,2]
[313659555,1707550246704,-500.0,0.00023273,2]
[313659556,1707550246713,-500.0,0.00023273,2]
[313659557,1707550246723,-500.0,0.00023273,2]
[313659558,1707550246732,-500.0,0.00023273,2]
[313659559,1707550246742,-500.0,0.00023273,2]
[313659560,1707550246751,-500.0,0.00023273,2]
[313659561,1707550246761,-500.0,0.00023273,2]
[313659562,1707550246770,-500.0,0.00023273,2]
[313659563,1707550246779,-500.0,0.00023273,2]
[313659564,1707550246789,-500.0,0.00023273,2]
[313659565,1707550246798,-643.27614339,0.00023273,2]
[313659566,1707550246807,-500.0,0.00023273,2]
[313659567,1707550246818,-500.0,0.00023273,2]
[313659568,1707550246827,-500.0,0.00023273,2]
[313659569,1707550246837,-500.0,0.00023273,2]
[313659570,1707550246846,-500.0,0.00023273,2]
[313659571,1707550246856,-500.0,0.00023273,2]
[313659572,1707550246865,-500.0,0.00023273,2]
[313659573,1707550246875,-314.52168855,0.00023273,2]
[313659574,1707550246884,-889.97,0.00023273,2]
[313659575,1707550246894,-500.0,0.00023273,2]
[313659576,1707550246903,-500.0,0.00023273,2]
[313659577,1707550246913,-993.79,0.00023273,2]
[313659578,1707550246922,-500.0,0.00023273,2]
[313659579,1707550246932,-829.76,0.00023273,2]
[313659580,1707550246941,-500.0,0.00023273,2]
[313659581,1707550246951,-500.0,0.00023273,2]
[313659582,1707550246960,-500.0,0.00023273,2]
[313659583,1707550246969,-500.0,0.00023273,2]
[313659584,1707550246979,-500.0,0.00023273,2]
[313659585,1707550246988,-500.0,0.00023273,2]
[313659586,1707550246997,-500.0,0.00023273,2]
[313659587,1707550247007,-611.14,0.00023273,2]
[313659588,1707550247016,-648.45,0.00023273,2]
[313659589,1707550247025,-500.0,0.00023273,2]
[313659590,1707550247034,-500.0,0.00023273,2]
[313659591,1707550247044,-500.0,0.00023273,2]
[313659592,1707550247053,-500.0,0.00023273,2]
[313659593,1707550247063,-500.0,0.00023273,2]
[313659594,1707550247073,-233.36014724,0.00023273,2]
[313659595,1707550247084,-500.0,0.00023273,2]
[313659596,1707550247094,-581.41231003,0.00023273,2]
[313659597,1707550247103,-500.0,0.00023273,2]
[313659598,1707550247113,-526.81782397,0.00023273,2]
[313659599,1707550247122,-500.0,0.00023273,2]
[313659600,1707550247132,-500.0,0.00023273,2]
[313659601,1707550247141,-500.0,0.00023273,2]
[313659602,1707550247153,-500.0,0.00023273,2]
[313659603,1707550247162,-500.0,0.00023273,2]
[313659604,1707550247171,-679.62,0.00023273,2]
[313659605,1707550247180,-575.8716719,0.00023273,2]
[313659606,1707550247190,-500.0,0.00023273,2]
[313659607,1707550247199,-500.0,0.00023273,2]
[313659608,1707550247209,-500.0,0.00023273,2]
[313659609,1707550247218,-1050.03,0.00023273,2]
[313659610,1707550247227,-535.82677326,0.00023273,2]
[313659611,1707550247236,-500.0,0.00023273,2]
[313659612,1707550247246,-500.0,0.00023273,2]
[313659613,1707550247256,-500.0,0.00023273,2]
[313659614,1707550247265,-500.0,0.00023273,2]
[313659615,1707550247275,-500.0,0.00023273,2]
[313659616,1707550247284,-500.0,0.00023273,2]
[313659617,1707550247294,-500.0,0.00023273,2]
[313659618,1707550247303,-500.0,0.00023273,2]
[313659619,1707550247313,-500.0,0.00023273,2]
[313659620,1707550247322,-500.0,0.00023273,2]
[313659621,1707550247332,-500.0,0.00023273,2]
[313659622,1707550247342,-500.0,0.00023273,2]
[313659623,1707550247352,-500.0,0.00023273,2]
[313659624,1707550247361,-500.0,0.00023273,2]
[313659625,1707550247371,-500.0,0.00023273,2]
[313659626,1707550247381,-724.43,0.00023273,2]
[313659627,1707550247390,-500.0,0.00023273,2]
[313659628,1707550247400,-500.0,0.00023273,2]
[313659629,1707550247410,-500.0,0.00023273,2]
[313659630,1707550247420,-500.0,0.00023273,2]
[313659631,1707550247429,-727.19,0.00023273,2]
[313659632,1707550247439,-500.0,0.00023273,2]
[313659633,1707550247448,-500.0,0.00023273,2]
[313659634,1707550247458,-500.0,0.00023273,2]
[313659635,1707550247467,-500.0,0.00023273,2]
[313659636,1707550247477,-500.0,0.00023273,2]
[313659637,1707550247487,-500.0,0.00023273,2]
[313659638,1707550247496,-500.0,0.00023273,2]
[313659639,1707550247506,-500.0,0.00023273,2]
[313659640,1707550247516,-500.0,0.00023273,2]
[313659641,1707550247526,-500.0,0.00023273,2]
[313659642,1707550247535,-861.38,0.00023273,2]
[313659643,1707550247544,-1177.9,0.00023273,2]
[313659644,1707550247554,-500.0,0.00023273,2]
[313659645,1707550247563,-1067.09,0.00023273,2]
[313659646,1707550247572,-500.0,0.00023273,2]
[313659647,1707550247582,-500.0,0.00023273,2]
[313659648,1707550247591,-500.0,0.00023273,2]
[313659649,1707550247601,-500.0,0.00023273,2]
[313659650,1707550247611,-1156.27,0.00023273,2]
[313659651,1707550247621,-500.0,0.00023273,2]
[313659652,1707550247630,-1575.54,0.00023273,2]
[313659653,1707550247640,-500.0,0.00023273,2]
[313659654,1707550247649,-2269.78,0.00023273,2]
[313659655,1707550247660,-500.0,0.00023273,2]
[313659656,1707550247670,-500.0,0.00023273,2]
[313659657,1707550247679,-500.0,0.00023273,2]
[313659658,1707550247689,-490.34259149,0.00023273,2]
[313659659,1707550247698,-500.0,0.00023273,2]
[313659660,1707550247708,-500.0,0.00023273,2]
[313659661,1707550247718,-524.2708109,0.00023273,2]
[313659662,1707550247728,-500.0,0.00023273,2]
[313659663,1707550247737,-500.0,0.00023273,2]
[313659664,1707550247747,-1000.0,0.00023273,7]
[313659665,1707550247756,-500.0,0.00023273,2]
[313659666,1707550247767,-576.66,0.00023273,2]
[313659667,1707550247776,-675.42,0.00023273,2]
[313659668,1707550247787,-500.0,0.00023273,2]
[313659669,1707550247797,-22082.31,0.00023273,2]
[313659670,1707550247808,-500.0,0.00023273,2]
[313659671,1707550247818,-500.0,0.00023273,2]
[313659672,1707550247828,-661.15,0.00023273,2]
[313659673,1707550247838,-500.0,0.00023273,2]
[313659674,1707550247848,-3836.38,0.00023273,2]
[313659675,1707550247858,-500.0,0.00023273,2]
[313659676,1707550247868,-500.0,0.00023273,2]
[313659677,1707550247878,-500.0,0.00023273,2]
[313659678,1707550247887,-1753.23,0.00023273,2]
[313659679,1707550247897,-646.96,0.00023273,2]
[313659680,1707550247907,-500.0,0.00023273,2]
[313659681,1707550247917,-2810.38,0.00023273,2]
[313659682,1707550247926,-500.0,0.00023273,2]
[313659683,1707550247935,-500.0,0.00023273,2]
[313659684,1707550247944,-500.0,0.00023273,2]
[313659685,1707550247954,-1134.33,0.00023273,2]
[313659686,1707550247964,-500.0,0.00023273,2]
[313659687,1707550247973,-868.51,0.00023273,2]
[313659688,1707550247983,-3291.37,0.00023273,2]
[313659689,1707550247992,-3793.59,0.00023273,2]
[313659690,1707550248002,-500.0,0.00023273,2]
[313659691,1707550248012,-2887.49,0.00023273,2]
[313659692,1707550248022,-500.0,0.00023273,2]
[313659693,1707550248032,-2696.64,0.00023273,2]
[313659694,1707550248041,-500.0,0.00023273,2]
[313659695,1707550248051,-3494.63,0.00023273,2]
[313659696,1707550248061,-1329.31,0.00023273,2]
[313659697,1707550248071,-15986.28,0.00023273,2]
[313659698,1707550248082,-3924.71,0.00023273,2]
[313659699,1707550248094,-500.0,0.00023273,2]
[313659700,1707550248104,-2790.09,0.00023273,2]
[313659701,1707550248113,-500.0,0.00023273,2]
[313659702,1707550248123,-500.0,0.00023273,2]
[313659703,1707550248133,-580.63,0.00023273,2]
[313659704,1707550248142,-500.0,0.00023273,2]
[313659705,1707550248152,-1284.22,0.00023273,2]
[313659706,1707550248162,-500.0,0.00023273,2]
[313659707,1707550248172,-500.0,0.00023273,2]
[313659708,1707550248182,-1880.44,0.00023273,2]
[313659709,1707550248356,-4255.52,0.00023273,2]
[313659710,1707550248366,-490.05605404,0.00023273,2]
[313659711,1707550248375,-500.0,0.00023273,2]
[313659712,1707550248384,-500.0,0.00023273,2]
[313659713,1707550248394,-1208.77,0.00023273,2]
[313659714,1707550248403,-843.31,0.00023273,2]
[313659715,1707550248412,-2129.9,0.00023273,2]
[313659716,1707550248422,-14473.93,0.00023273,2]
[313659717,1707550248431,-500.0,0.00023273,2]
[313659718,1707550248440,-787.06,0.00023273,2]
[313659719,1707550248450,-646.6,0.00023273,2]
[313659720,1707550248459,-4619.9,0.00023273,2]
[313659721,1707550248468,-500.0,0.00023273,2]
[313659722,1707550248478,-2647.77,0.00023273,2]
[313659723,1707550248487,-500.0,0.00023273,2]
[313659724,1707550248496,-500.0,0.00023273,2]
[313659725,1707550248506,-771.9,0.00023273,2]
[313659726,1707550248515,-500.0,0.00023273,2]
[313659727,1707550248524,-939.8,0.00023273,2]
[313659728,1707550248533,-500.0,0.00023273,2]
[313659729,1707550248543,-500.0,0.00023273,2]
[313659730,1707550248551,-500.0,0.00023273,2]
[313659731,1707550248560,-2309.86,0.00023273,2]
[313659732,1707550248569,-500.0,0.00023273,2]
[313659733,1707550248581,-503.63,0.00023273,2]
[313659734,1707550248591,-500.0,0.00023273,2]
[313659735,1707550248600,-3308.8,0.00023273,2]
[313659736,1707550248609,-619.96,0.00023273,2]
[313659737,1707550248619,-534.85,0.00023273,2]
[313659738,1707550248628,-500.0,0.00023273,2]
[313659739,1707550248637,-500.0,0.00023273,2]
[313659740,1707550248647,-500.0,0.00023273,2]
[313659741,1707550248656,-1722.53,0.00023273,2]
[313659742,1707550248665,-500.0,0.00023273,2]
[313659743,1707550248675,-500.0,0.00023273,2]
[313659744,1707550248684,-500.0,0.00023273,2]
[313659745,1707550248694,-500.0,0.00023273,2]
[313659746,1707550248703,-500.0,0.00023273,2]
[313659747,1707550248713,-500.0,0.00023273,2]
[313659748,1707550248723,-904.9,0.00023273,2]
[313659749,1707550248732,-15067.19,0.00023273,2]
[313659750,1707550248741,-500.0,0.00023273,2]
[313659751,1707550248750,-500.0,0.00023273,2]
[313659752,1707550248760,-161.86761481,0.00023305,2]
[313659753,1707550248770,-161.86761481,0.00023444,2]
[313659754,1707550248780,-1097.5655052,0.00023447,2]
[313659755,1707550248790,-2926.18712655,0.00023447,2]
[313659756,1707550248800,-16617.89992905,0.00023447,2]
[313659757,1707550248809,-2296.9003706,0.00023447,2]
[313659758,1707550248818,-4242.78000238,0.00023447,2]
[313659759,1707550248829,-2015.18803531,0.00023471,2]
[313659760,1707550248838,-177.27300872,0.00023537,2]
[313659761,1707550248848,-500.0,0.00023544,2]
[313659762,1707550248857,-500.0,0.00023544,2]
[313659763,1707550248867,-500.0,0.00023544,2]
[313659764,1707550248876,-876.0,0.00023544,2]
[313659765,1707550248885,-739.06,0.00023544,2]
[313659766,1707550248895,-2841.02,0.00023544,2]
[313659767,1707550248905,-500.0,0.00023544,2]
[313659768,1707550248915,-500.0,0.00023544,2]
[313659769,1707550248923,-1236.7,0.00023544,2]
[313659770,1707550248932,-780.84,0.00023544,2]
[313659771,1707550248942,-1564.86,0.00023544,2]
[313659772,1707550248951,-841.34,0.00023544,2]
[313659773,1707550248960,-500.0,0.00023544,2]
[313659774,1707550248969,-3213.78,0.00023544,2]
[313659775,1707550248978,-3065.8,0.00023544,2]
[313659776,1707550248988,-964.5,0.00023544,2]
[313659777,1707550248997,-500.0,0.00023544,2]
[313659778,1707550249006,-1033.2,0.00023544,2]
[313659779,1707550249015,-10773.23,0.00023544,2]
[313659780,1707550249025,-528.14,0.00023544,2]
[313659781,1707550249034,-500.0,0.00023544,2]
[313659782,1707550249043,-4796.06,0.00023544,2]
[313659783,1707550249053,-723.87,0.00023544,2]
[313659784,1707550249062,-858.57,0.00023544,2]
[313659785,1707550249071,-1178.95,0.00023544,2]
[313659786,1707550249082,-770.08,0.00023544,2]
[313659787,1707550249091,-750.69,0.00023544,2]
[313659788,1707550249101,-500.0,0.00023544,2]
[313659789,1707550249110,-500.0,0.00023544,2]
[313659790,1707550249120,-532.38,0.00023545,2]
[313659791,1707550249129,-865.44,0.00023545,2]
[313659792,1707550249138,-500.0,0.00023545,2]
[313659793,1707550249148,-4005.94,0.00023545,2]
[313659794,1707550249158,-4233.42,0.00023545,2]
[313659795,1707550249168,-28207.96,0.00023545,2]
[313659796,1707550249177,-952.98,0.00023545,2]
[313659797,1707550249186,-604.05,0.00023545,2]
[313659798,1707550249195,-9584.11,0.00023545,2]
[313659799,1707550249204,-4357.35,0.00023545,2]
[313659800,1707550249214,-500.0,0.00023545,2]
[313659801,1707550249223,-500.0,0.00023545,2]
[313659802,1707550249233,-3811.37,0.00023545,2]
[313659803,1707550249242,-500.0,0.00023545,2]
[313659804,1707550249252,-1997.3,0.00023545,2]
[313659805,1707550249262,-987.08,0.00023545,2]
[313659806,1707550249271,-524.03,0.00023545,2]
[313659807,1707550249281,-15753.33,0.00023545,2]
[313659808,1707550249290,-623.89,0.00023545,2]
[313659809,1707550249300,-1474.04,0.00023545,2]
[313659810,1707550249309,-500.0,0.00023545,2]
[313659811,1707550249319,-500.0,0.00023545,2]
[313659812,1707550249328,-697.25,0.00023545,2]
[313659813,1707550249338,-5901.87,0.00023545,2]
[313659814,1707550249347,-820.78,0.00023545,2]
[313659815,1707550249357,-1020.72,0.00023545,2]
[313659816,1707550249367,-983.08,0.00023545,2]
[313659817,1707550249376,-500.0,0.00023546,2]
[313659818,1707550249385,-500.0,0.00023546,2]
[313659819,1707550249394,-651.29,0.00023546,2]
[313659820,1707550249405,-370.60728904,0.00023546,2]
[313659821,1707550249414,-500.0,0.00023546,2]
[313659822,1707550249423,-500.0,0.00023546,2]
[313659823,1707550249432,-500.0,0.00023546,2]
[313659824,1707550249441,-500.0,0.00023546,2]
[313659825,1707550249450,-500.0,0.00023546,2]
[313659826,1707550249459,-500.0,0.00023546,2]
[313659827,1707550249469,-500.0,0.00023546,2]
[313659828,1707550249478,-500.0,0.00023546,2]
[313659829,1707550249488,-500.0,0.00023546,2]
[313659830,1707550249497,-500.0,0.00023546,2]
[313659831,1707550249506,-500.0,0.00023546,2]
[313659832,1707550249516,-698.85,0.00023546,7]
[313659833,1707550249527,-500.0,0.00023546,2]
[313659834,1707550249536,-500.0,0.00023546,2]
[313659835,1707550249546,-500.0,0.00023546,2]
[313659836,1707550249555,-500.0,0.00023546,2]
[313659837,1707550249564,-500.0,0.00023546,2]
[313659838,1707550249573,-500.0,0.00023546,2]
[313659839,1707550249582,-500.0,0.00023546,2]
[313659840,1707550249591,-500.0,0.00023546,2]
[313659841,1707550249600,-596.59,0.00023546,2]
[313659842,1707550249609,-653.32,0.00023546,2]
[313659843,1707550249618,-500.0,0.00023546,2]
[313659844,1707550249627,-500.0,0.00023546,2]
[313659845,1707550249636,-500.0,0.00023546,2]
[313659846,1707550249645,-500.0,0.00023546,2]
[313659847,1707550249654,-500.0,0.00023546,2]
[313659848,1707550249664,-500.0,0.00023546,2]
[313659849,1707550249673,-500.0,0.00023546,2]
[313659850,1707550249682,-500.0,0.00023546,2]
[313659851,1707550249691,-500.0,0.00023546,2]
[313659852,1707550249700,-500.0,0.00023546,2]
[313659853,1707550249709,-500.0,0.00023546,2]
[313659854,1707550249718,-501.59,0.00023546,2]
[313659855,1707550249727,-500.0,0.00023546,2]
[313659856,1707550249737,-500.0,0.00023546,2]
[313659857,1707550249746,-500.0,0.00023546,2]
[313659858,1707550249755,-749.98,0.00023546,2]
[313659859,1707550249764,-500.0,0.00023546,2]
[313659860,1707550249773,-500.0,0.00023546,2]
[313659861,1707550249782,-178.4,0.00023546,2]
[313659862,1707550249791,-1628.71,0.00023546,2]
[313659863,1707550249800,-500.0,0.00023546,2]
[313659864,1707550249809,-797.39,0.00023546,2]
[313659865,1707550249818,-500.0,0.00023546,2]
[313659866,1707550249829,-500.0,0.00023546,2]
[313659867,1707550249838,-905.39,0.00023546,2]
[313659868,1707550249847,-500.0,0.00023546,2]
[313659869,1707550249856,-1369.16,0.00023546,2]
[313659870,1707550249865,-600.98,0.00023546,2]
[313659871,1707550249874,-500.0,0.00023546,2]
[313659872,1707550249884,-732.41,0.00023546,2]
[313659873,1707550249893,-500.0,0.00023546,2]
[313659874,1707550249902,-500.0,0.00023546,2]
[313659875,1707550249911,-500.0,0.00023546,2]
[313659876,1707550249920,-519.21,0.00023546,2]
[313659877,1707550249929,-3358.02,0.00023546,2]
[313659878,1707550249939,-500.0,0.00023546,2]
[313659879,1707550249948,-2687.95,0.00023546,2]
[313659880,1707550249957,-500.0,0.00023546,2]
[313659881,1707550249966,-500.0,0.00023546,2]
[313659882,1707550249975,-5968.38,0.00023546,2]
[313659883,1707550249984,-637.98274288,0.00023546,2]
[313659884,1707550249993,-500.0,0.00023546,2]
[313659885,1707550250002,-500.0,0.00023546,2]
[313659886,1707550250012,-4766.45,0.00023546,2]
[313659887,1707550250021,-500.0,0.00023546,2]
[313659888,1707550250030,-917.38,0.00023546,2]
[313659889,1707550250039,-21142.71,0.00023546,2]
[313659890,1707550250048,-7044.22,0.00023546,2]
[313659891,1707550250058,-500.0,0.00023546,2]
[313659892,1707550250069,-500.0,0.00023546,2]
[313659893,1707550250078,-2165.71,0.00023546,2]
[313659894,1707550250087,-500.0,0.00023546,2]
[313659895,1707550250096,-500.0,0.00023546,2]
[313659896,1707550250106,-4932.86,0.00023546,2]
[313659897,1707550250115,-773.79,0.00023546,2]
[313659898,1707550250125,-500.0,0.00023546,2]
[313659899,1707550250134,-545.16,0.00023546,2]
[313659900,1707550250145,-500.0,0.00023546,2]
[313659901,1707550250155,-500.0,0.00023546,2]
[313659902,1707550250164,-1857.65,0.00023546,2]
[313659903,1707550250173,-500.0,0.00023546,2]
[313659904,1707550250182,-500.0,0.00023546,2]
[313659905,1707550250191,-3525.48,0.00023546,2]
[313659906,1707550250200,-500.0,0.00023546,2]
[313659907,1707550250210,-7549.37,0.00023546,2]
[313659908,1707550250219,-500.0,0.00023546,2]
[313659909,1707550250228,-556.3,0.00023546,2]
[313659910,1707550250238,-696.34,0.00023546,2]
[313659911,1707550250248,-500.0,0.00023546,2]
[313659912,1707550250257,-500.0,0.00023546,2]
[313659913,1707550250267,-500.0,0.00023546,2]
[313659914,1707550250276,-500.0,0.00023546,2]
[313659915,1707550250286,-602.17,0.00023546,2]
[313659916,1707550250295,-500.0,0.00023546,2]
[313659917,1707550250304,-7994.11,0.00023546,2]
[313659918,1707550250314,-501.83,0.00023546,2]
[313659919,1707550250324,-3042.89,0.00023546,2]
[313659920,1707550250334,-500.0,0.00023546,2]
[313659921,1707550250344,-908.93,0.00023546,2]
[313659922,1707550250353,-519.14,0.00023546,2]
[313659923,1707550250363,-1521.59,0.00023546,2]
[313659924,1707550250373,-1277.54,0.00023546,2]
[313659925,1707550250383,-500.0,0.00023546,2]
[313659926,1707550250392,-500.0,0.00023546,2]
[313659927,1707550250402,-1074.11,0.00023546,2]
[313659928,1707550250415,-3035.8,0.00023546,2]
[313659929,1707550250425,-500.0,0.00023546,2]
[313659930,1707550250434,-500.0,0.00023546,2]
[313659931,1707550250444,-500.0,0.00023546,2]
[313659932,1707550250454,-1930.43,0.00023546,2]
[313659933,1707550250464,-500.0,0.00023546,2]
[313659934,1707550250474,-500.0,0.00023546,2]
[313659935,1707550250484,-500.0,0.00023546,2]
[313659936,1707550250494,-500.0,0.00023546,2]
[313659937,1707550250504,-500.0,0.00023546,2]
[313659938,1707550250514,-548.43,0.00023546,2]
[313659939,1707550250524,-500.0,0.00023546,2]
[313659940,1707550250534,-500.0,0.00023546,2]
[313659941,1707550250544,-500.0,0.00023546,2]
[313659942,1707550250554,-556.85,0.00023546,2]
[313659943,1707550250563,-1145.35,0.00023546,2]
[313659944,1707550250572,-996.7,0.00023546,2]
[313659945,1707550250581,-500.0,0.00023546,2]
[313659946,1707550250591,-500.0,0.00023546,2]
[313659947,1707550250600,-3454.53,0.00023546,2]
[313659948,1707550250609,-1035.04,0.00023546,2]
[313659949,1707550250619,-500.0,0.00023546,2]
[313659950,1707550250628,-500.0,0.00023546,2]
[313659951,1707550250637,-500.0,0.00023546,2]
[313659952,1707550250647,-1126.02,0.00023546,2]
[313659953,1707550250656,-524.82,0.00023546,2]
[313659954,1707550250666,-500.0,0.00023546,2]
[313659955,1707550250676,-3938.0,0.00023546,2]
[313659956,1707550250685,-3429.49,0.00023546,2]
[313659957,1707550250694,-500.0,0.00023546,2]
[313659958,1707550250703,-500.0,0.00023546,2]
[313659959,1707550250712,-3617.37,0.00023546,2]
[313659960,1707550250722,-500.0,0.00023546,2]
[313659961,1707550250731,-500.0,0.00023547,2]
[313659962,1707550250740,-500.0,0.00023547,2]
[313659963,1707550250750,-500.0,0.00023547,2]
[313659964,1707550250759,-500.0,0.00023547,2]
[313659965,1707550250768,-500.0,0.00023547,2]
[313659966,1707550250777,-500.0,0.00023547,2]
[313659967,1707550250786,-399.80935983,0.00023547,2]
[313659968,1707550250795,-500.0,0.00023547,2]
[313659969,1707550250805,-268.43036429,0.00023547,2]
[313659970,1707550250814,-500.0,0.00023547,2]
[313659971,1707550250823,-500.0,0.00023547,2]
[313659972,1707550250833,-500.0,0.00023547,2]
[313659973,1707550250842,-500.0,0.00023547,2]
[313659974,1707550250852,-500.0,0.00023547,2]